{"text_format":"3","workbook":"xlsx","n_sheets":4,"sheets":["תנאי סף","איכות","מחיר","סופי"],"not_rendered":{"external_links":1},"read":"whole","date_system":"1900"}

{"sheet":"תנאי סף","index":0,"n_rows":26,"n_cols":6,"rows_kept":26}
[]
[null,"סעיף","פירוט","מציע מס' 1","מציע מס' 2","מציע מס' 3"]
[null,"3.1.1","הוא אזרח ישראלי או תאגיד המאוגד כדין בישראל"]
[null,"3.1.2","המציע עומד בדרישות תקנה 6(א) לתקנות חובת המכרזים, התשנ\"ג - 1993 ובכלל זה מחזיק בכל האישורים הנדרשים לפי חוק עסקאות גופים ציבוריים (אכיפת ניהול חשבונות ותשלום חובות מס), כשהם תקפים.\nבמועד הגשת ההצעה, המציע אינו בעל חובות אגרה שנתית ברשות התאגידים."]
[null,"3.1.3","אין מניעה, לפי כל דין ו/או הסכם שהמציע צד לו, להשתתפותו במכרז ואין, לפי שיקול דעתו הבלעדי והמוחלט של המשרד, אפשרות כלשהי לקיומו של ניגוד עניינים, ישיר או עקיף, בין ענייני המציע ו/או בעלי השליטה בו ו/או נושאי המשרה שלו ו/או הפועלים מטעמו, לבין ענייני המשרד ו/או מתן השירותים"]
[null,"3.1.4","המציע בעל ניסיון, בחמש השנים האחרונות, לפחות, בפיתוח, עדכון ותחזוקת שיטות שכר עידוד בשני גופים ציבוריים עבור 100 עובדים לפחות בכל גוף. "]
[null,"3.1.5.1","מנהל הפרויקט\n• מועסק אצל המציע, באופן רציף, לפחות בארבע (4) השנים האחרונות שקדמו למועד האחרון להגשת ההצעות.\n• בעל תואר מהנדס בתעשייה וניהול הרשום בפנקס המהנדסים ואדריכלים, או הנדסאי תעשייה וניהול הרשום בפנקס ההנדסאים וטכנאים.\n• בעל ניסיון, בחמש השנים האחרונות, בניהול וביצוע פרויקטים בתחום הפיתוח, עדכון ותחזוקת שיטות לשכר עידוד בשני גופים ציבוריים, לפחות, עבור 100 עובדים לפחות, בכל גוף."]
[null,"3.1.5.2","2 אנשי צוות\n• כל אחד מאנשי הצוות מועסק אצל המציע, באופן רציף, לפחות בשנתיים האחרונות שקדמו למועד האחרון להגשת ההצעות.\n• כל אחד מאנשי הצוות יהא בעל ניסיון, בשלוש השנים האחרונות, בניהול וביצוע פרויקטים בתחום הפיתוח, עדכון ותחזוקת שיטות לשכר עידוד.\n• כל אחד מאנשי הצוות הינו בעל תואר אקדמאי, ממוסד המוכר על ידי המועצה להשכלה גבוהה, באחד או יותר מהמקצועות הבאים: מנהל עסקים, כלכלה או תעשייה וניהול. "]
[null,4.1,"אישורים מאומתים על ידי עורך דין המפרטים את עמידתו של המציע בדרישות סעיף ‎3.1 לעיל. לצורך כך יצרף המציע את נספח ב'1 כשהוא מלא וחתום כנדרש"]
[null,4.2,"העתק תעודת זהות ו/או תעודת עוסק מורשה ו/או תעודת האגד (לפי העניין וסוג התאגדותו המשפטית של המציע) מאושרים על ידי עו\"ד, להוכחת העמידה בתנאי הסף שבסעיף ‎3.1.1 לעיל."]
[null,4.3,"אישור לפי חוק עסקאות גופים ציבוריים, בדבר ניהול פנקסי חשבונות ורשומות, כשהוא תקף, להוכחת העמידה בתנאי הסף שבסעיף ‎3.1.2 לעיל"]
[null,4.3,"המציע יציג נסח חברה / שותפות עדכני מרשות התאגידים הניתן להפקה דרך אתר האינטרנט של רשות התאגידים, שכתובתו: Taagidim.justice.gov.il בלחיצה על הכותרת \"הפקת נסח חברה\"."]
[null,4.4,"המציע יספק פרטים אאודות ניסיונו בפיתוח, עדכון ותחזוקת שיטות שכר עידוד לגופים בסדר גודל דומה, בחמש השנים האחרונות, כמפורט בסעיף ‎3.1.4 לעיל. הפרטים יסופקו בהתאם לנדרש בנספח א'5."]
[null,4.6,"מנהל פרויקט: \nקורות חיים.\nתעודות המעידות על השכלה"]
[null,4.6,"2 אנשי צוות: \nקורות חיים.\nתעודות המעידות על השכלה"]
[null,4.6,"פרטי הצוות בהתאם לנדרש בנספח א'6 לחלק זה"]
[null,4.7,"מסמך, בשפה העברית המתאר את פרופיל המציע"]
[null,4.11,"העתק אישור רכישת מסמכי המכרז"]
[null,4.12,"כל מסמכי המכרז (לרבות מכתבי ההבהרה שישלח המשרד למציעים) כשהם חתומים בשולי כל עמוד על-ידי בעל הסמכות לחייב את המציע בצירוף חותמת המציע"]
[null,4.13,"טופס כתב הצעה, המצורף כחלק ב' למסמכי המכרז כשהוא חתום על-ידי נושא משרה המוסמך לחייב את המציע ומאושר על ידי עו\"ד כנדרש"]
[null,4.14,"ההסכם המצורף למסמכי המכרז כחלק ג', לאחר שהמציע ישלים בו את פרטיו, ויחתום על ההסכם והנספחים המצורפים לו במקומות המיועדים לחתימתו (יש לחתום גם בראשי תיבות וחותמת בשולי כל עמוד)"]
[null,4.15,"נספח א'2 למסמכי המכרז - תצהיר בדבר העדר הרשעות לפי חוק עובדים זרים וחוק שכר מינימום חתום ע\"י עו\"ד"]
[null,4.16,"נספח א'3 למסמכי המכרז - התחייבות ואישור המציע לקיום החקיקה בתחום העסקת עובדים חתומה ע\"י עו\"ד"]
[null,4.17,"נספח א'4 למסמכי המכרז - הצהרה על שימוש בתוכנות מקוריות חתומה על ידי עו\"ד / רו\"ח"]
[null,4.18,"היה המציע תאגיד, יצורפו (א) מסמכי ההתאגדות העדכניים מאושרים כדין על-ידי עו\"ד, (ב) פירוט הרכב בעלי המניות ומבנה הנהלת המציע, (ג) אישור עדכני על רישום המציע במרשם המתנהל על-פי כל דין, לגבי תאגידים מסוגו, ו- (ד) אישור עו\"ד או רו\"ח על היות המציע תאגיד קיים ועל היות החתומים בשמו על מסמכי המכרז רשאים לחייב את המציע בחתימתם"]
[null,4.19,"אם העסק בשליטת אישה, על המציע להמציא את האישור והתצהיר הנדרשים בהתאם לחוק חובת המכרזים, התשנ\"ב-1992"]

{"sheet":"איכות","index":1,"n_rows":37,"n_cols":17,"rows_kept":37,"merged":[[1,1,1,7],[1,8,1,10],[1,11,1,13],[1,14,1,16],[2,4,2,5],[3,1,7,1],[3,2,7,2],[3,3,5,3],[3,6,5,6],[3,7,7,7],[3,8,5,8],[3,9,5,9],[3,10,7,10],[3,11,5,11],[3,12,5,12],[3,13,7,13],[3,14,5,14],[3,15,5,15],[3,16,7,16],[6,4,6,5],[7,4,7,5],[8,1,17,1],[8,2,17,2],[8,4,8,5],[8,7,17,7],[8,10,17,10],[8,13,17,13],[8,16,17,16],[9,3,11,3],[9,6,11,6],[9,8,11,8],[9,9,11,9],[9,11,11,11],[9,12,11,12],[9,14,11,14],[9,15,11,15],[12,4,12,5],[13,4,13,5],[14,3,16,3],[14,6,16,6],[14,8,16,8],[14,9,16,9],[14,11,16,11],[14,12,16,12],[14,14,16,14],[14,15,16,15],[17,4,17,5],[18,1,18,7],[18,8,18,10],[18,11,18,13],[18,14,18,16],[19,1,19,7],[19,8,19,10],[19,11,19,13],[19,14,19,16],[20,2,22,2],[20,4,20,5],[20,7,22,7],[20,10,22,10],[20,13,22,13],[20,16,22,16],[21,4,21,5],[22,4,22,5],[23,3,23,7],[23,8,23,10],[23,11,23,13],[23,14,23,16],[24,1,24,6],[24,8,24,10],[24,11,24,13],[24,14,24,16],[25,1,25,6],[25,8,25,10],[25,11,25,13],[25,14,25,16],[26,1,26,7],[26,8,26,10],[26,11,26,13],[26,14,26,16],[33,2,33,3],[39,2,39,3]]}
[]
[null,"מרכיבי איכות",{"$nulls":6},{"$f":"'תנאי סף'!D2","v":"מציע מס' 1"},null,null,{"$f":"'תנאי סף'!E2","v":"מציע מס' 2"},null,null,{"$f":"'תנאי סף'!F2","v":"מציע מס' 3"}]
[null,"סעיף","פרמטר","פרמטר משנה","מרכיב ציון",null,"משקל פרמטר משנה","משקל","היקף / רמה שהוצג/ה","ציון לפרמטר משנה","ציון לפרמטר","היקף / רמה שהוצג/ה","ציון לפרמטר משנה","ציון לפרמטר","היקף / רמה שהוצג/ה","ציון לפרמטר משנה","ציון לפרמטר"]
[null,"7.7.1","התרשמות מניסיון קודם","כמות גופים בהם בוצעו פרויקטים בתחום שכר עידוד במגזר הציבורי","3 או 4 גופים",40,{"v":0.2,"d":"20%"},{"v":0.4,"d":"40%"},null,{"$f":"IF(I4<=2,\"לא עבר תנאי סף\",LOOKUP(I4,$C$35:$C$37,$D$35:$D$37))","v":"לא עבר תנאי סף"},{"$f":"SUMPRODUCT(J4:J8,$G$4:$G$8)*$H$4","v":0},null,{"$f":"IF(L4<=2,\"לא עבר תנאי סף\",LOOKUP(L4,$C$35:$C$37,$D$35:$D$37))","v":"לא עבר תנאי סף"},{"$f":"SUMPRODUCT(M4:M8,$G$4:$G$8)*$H$4","v":0},null,{"$f":"IF(O4<=2,\"לא עבר תנאי סף\",LOOKUP(O4,$C$35:$C$37,$D$35:$D$37))","v":"לא עבר תנאי סף"},{"$f":"SUMPRODUCT(P4:P8,$G$4:$G$8)*$H$4","v":0}]
[{"$nulls":4},"5 או 6 גופים",80]
[{"$nulls":4},"מעל 7 גופים",100]
[{"$nulls":3},"רמת הפרויקטים שבוצעו (מידת המורכבות, סוגי המודלים שפותחו, מס' המודלים שפותחו או עודכנו במשך תקופת הפרויקט, היקפם, מס' המודלים שאושרו במועצת הייצור וכד')","ציון מ-1 עד 100",null,{"v":0.4,"d":"40%"},null,null,{"$f":"I7","v":0},null,null,{"$f":"L7","v":0},null,null,{"$f":"O7","v":0}]
[{"$nulls":3},"התרשמות מחוו\"ד של לקוחות קודמים","ציון מ-1 עד 100",null,{"v":0.2,"d":"20%"},null,null,{"$f":"I8","v":0},null,null,{"$f":"L8","v":0},null,null,{"$f":"O8","v":0}]
[null,"7.7.2","ניסיון צוות המציע","איש צוות 1\nשנות ניסיון בתחום עידוד השכר","עבור כל שנת ניסיון המציע יקבל 10 נק'. מעל 10 שנים, יזכה למקס' הניקוד.\nהציון ינתן לשנות ניסיון מעבר לנדרש בתנאי הסף",null,{"v":0.15,"d":"15%"},{"v":0.3,"d":"30%"},null,{"$f":"IF(I9<3,\"לא עבר תנאי סף\",IF(I9>=13,100,(I9-3)*10))","v":"לא עבר תנאי סף"},{"$f":"SUMPRODUCT(J9:J18,$G$9:$G$18)*$H$9","v":{"$error":"#N/A"}},null,{"$f":"IF(L9<3,\"לא עבר את תנאי הסף\",IF(L9>=13,100,(L9-3)*10))","v":"לא עבר את תנאי הסף"},{"$f":"SUMPRODUCT(M9:M18,$G$9:$G$18)*$H$9","v":{"$error":"#N/A"}},null,{"$f":"IF(O9<3,\"לא עבר את תנאי הסף\",IF(O9>=13,100,(O9-3)*10))","v":"לא עבר את תנאי הסף"},{"$f":"SUMPRODUCT(P9:P18,$G$9:$G$18)*$H$9","v":{"$error":"#N/A"}}]
[{"$nulls":3},"איש צוות 1\nרמת ניסיון מוצג בקו\"ח","רמה נמוכה",40,{"v":0.1,"d":"10%"},null,null,{"$f":"VLOOKUP(I10,$E$10:$F$12,2,FALSE)","v":{"$error":"#N/A"}},null,null,{"$f":"VLOOKUP(L10,$E$10:$F$12,2,FALSE)","v":{"$error":"#N/A"}},null,null,{"$f":"VLOOKUP(O10,$E$10:$F$12,2,FALSE)","v":{"$error":"#N/A"}}]
[{"$nulls":4},"רמה בינונית ",70]
[{"$nulls":4},"רמה גבוהה",100]
[{"$nulls":3},"איש צוות 1\nניסיון בפרויקטים בעידוד שכר במגזר הציבורי","ציון מ-1 עד 100",null,{"v":0.25,"d":"25%"},null,null,{"$f":"I13","v":0},null,null,{"$f":"L13","v":0},null,null,{"$f":"O13","v":0}]
[{"$nulls":3},"איש צוות 2\nשנות ניסיון בתחום עידוד השכר","עבור כל שנת ניסיון המציע יקבל 10 נק'. מעל 10 שנים, יזכה למקס' הניקוד.\nהציון ינתן לשנות ניסיון מעבר לנדרש בתנאי הסף",null,{"v":0.15,"d":"15%"},null,null,{"$f":"IF(I14<3,\"לא עבר תנאי סף\",IF(I14>=13,100,(I14-3)*10))","v":"לא עבר תנאי סף"},null,null,{"$f":"IF(L14<3,\"לא עבר את תנאי הסף\",IF(L14>=13,100,(L14-3)*10))","v":"לא עבר את תנאי הסף"},null,null,{"$f":"IF(O14<3,\"לא עבר את תנאי הסף\",IF(O14>=13,100,(O14-3)*10))","v":"לא עבר את תנאי הסף"}]
[{"$nulls":3},"איש צוות 2\nרמת ניסיון מוצג בקו\"ח","רמה נמוכה",40,{"v":0.1,"d":"10%"},null,null,{"$f":"VLOOKUP(I15,$E$15:$F$17,2,FALSE)","v":{"$error":"#N/A"}},null,null,{"$f":"VLOOKUP(L15,$E$15:$F$17,2,FALSE)","v":{"$error":"#N/A"}},null,null,{"$f":"VLOOKUP(O15,$E$15:$F$17,2,FALSE)","v":{"$error":"#N/A"}}]
[{"$nulls":4},"רמה בינונית ",70]
[{"$nulls":4},"רמה גבוהה",100]
[{"$nulls":3},"איש צוות 1\nניסיון בפרויקטים בעידוד שכר במגזר הציבורי","ציון מ-1 עד 100",null,{"v":0.25,"d":"25%"},null,null,{"$f":"I18","v":0},null,null,{"$f":"L18","v":0},null,null,{"$f":"O18","v":0}]
[null,"ציון ביניים",{"$nulls":6},{"$f":"IF(OR(J4=\"לא עבר תנאי סף\",#REF!=\"לא עבר תנאי סף\",J9=\"לא עבר תנאי סף\",J14=\"לא עבר תנאי סף\"),\"לא עבר תנאי סף\",SUM(K4:K18))","v":{"$error":"#REF!"}},null,null,{"$f":"IF(OR(M4=\"לא עבר תנאי סף\",#REF!=\"לא עבר תנאי סף\",M9=\"לא עבר תנאי סף\",M14=\"לא עבר תנאי סף\"),\"לא עבר תנאי סף\",SUM(N4:N18))","v":{"$error":"#REF!"}},null,null,{"$f":"IF(OR(P4=\"לא עבר תנאי סף\",#REF!=\"לא עבר תנאי סף\",P9=\"לא עבר תנאי סף\",P14=\"לא עבר תנאי סף\"),\"לא עבר תנאי סף\",SUM(Q4:Q18))","v":{"$error":"#REF!"}}]
[null,"האם לזמן את מנהל הפרויקט לראיון?",{"$nulls":6},{"$f":"IF(OR(I19=\"לא עבר תנאי סף\",I19<56),\"לא לזמן לראיון\",\"יש לזמן לראיון\")","v":{"$error":"#REF!"}},null,null,{"$f":"IF(OR(L19=\"לא עבר תנאי סף\",L19<56),\"לא לזמן לראיון\",\"יש לזמן לראיון\")","v":{"$error":"#REF!"}},null,null,{"$f":"IF(OR(O19=\"לא עבר תנאי סף\",O19<56),\"לא לזמן לראיון\",\"יש לזמן לראיון\")","v":{"$error":"#REF!"}}]
[null,"7.6.2","ניסיון מנהל הפרויקט","שנות ניסיון בתחום עידוד שכר","עבור כל שנת ניסיון המציע יקבל 10 נק'. מעל 10 שנים, יזכה למקס' הניקוד.\nהציון ינתן לשנות ניסיון מעבר לנדרש בתנאי הסף",null,{"v":0.2,"d":"20%"},{"v":0.3,"d":"30%"},null,{"$f":"IF(I21<5,\"לא עבר את תנאי הסף\",IF(I21>=15,100,(I21-5)*10))","v":"לא עבר את תנאי הסף"},{"$f":"SUMPRODUCT(J21:J23,$G$21:$G$23)*$H$21","v":0},null,{"$f":"IF(L21<5,\"לא עבר את תנאי הסף\",IF(L21>=15,100,(L21-5)*10))","v":"לא עבר את תנאי הסף"},{"$f":"SUMPRODUCT(M21:M23,$G$21:$G$23)*$H$21","v":0},null,{"$f":"IF(O21<5,\"לא עבר את תנאי הסף\",IF(O21>=15,100,(O21-5)*10))","v":"לא עבר את תנאי הסף"},{"$f":"SUMPRODUCT(P21:P23,$G$21:$G$23)*$H$21","v":0}]
[{"$nulls":3},"ניסיון בפרויקטים בעידוד שכר במגזר הציבורי","ציון מ-1 עד 100",null,{"v":0.3,"d":"30%"},null,null,{"$f":"I22","v":0},null,null,{"$f":"L22","v":0},null,null,{"$f":"O22","v":0}]
[{"$nulls":3},"התרשמות מראיון","ציון מ-1 עד 100",null,{"v":0.5,"d":"50%"},null,null,{"$f":"I23","v":0},null,null,{"$f":"L23","v":0},null,null,{"$f":"O23","v":0}]
[{"$nulls":3},"עבר את ציון המינ' בפרמטר?",{"$nulls":4},{"$f":"IF(K21<24,\"לא עבר ציון מינימום\",\"עבר ציון מינימום\")","v":"לא עבר ציון מינימום"},null,null,{"$f":"IF(N21<24,\"לא עבר ציון מינימום\",\"עבר ציון מינימום\")","v":"לא עבר ציון מינימום"},null,null,{"$f":"IF(Q21<24,\"לא עבר ציון מינימום\",\"עבר ציון מינימום\")","v":"לא עבר ציון מינימום"}]
[null,"סה\"כ ציון איכות",{"$nulls":5},{"$f":"SUM(H4:H23)","v":{"v":1,"d":"100%"}},{"$f":"SUM(K4:K23)","v":{"$error":"#N/A"}},null,null,{"$f":"SUM(N4:N23)","v":{"$error":"#N/A"}},null,null,{"$f":"SUM(Q4:Q23)","v":{"$error":"#N/A"}}]
[null,"סף איכות",{"$nulls":5},75,{"$f":"IF(OR(I25<$H$26,I19=\"לא עבר תנאי סף\",I20=\"לא לזמן לראיון\"),\"לא עבר את סף האיכות\",\"עבר את סף האיכות\")","v":{"$error":"#N/A"}},null,null,{"$f":"IF(OR(L25<$H$26,L19=\"לא עבר תנאי סף\",L20=\"לא לזמן לראיון\"),\"לא עבר את סף האיכות\",\"עבר את סף האיכות\")","v":{"$error":"#N/A"}},null,null,{"$f":"IF(OR(O25<$H$26,O19=\"לא עבר תנאי סף\",O20=\"לא לזמן לראיון\"),\"לא עבר את סף האיכות\",\"עבר את סף האיכות\")","v":{"$error":"#N/A"}}]
[null,"ציון איכות משוקלל - לאחר נירמול",{"$nulls":6},{"$f":"I25/MAX($I$25:$Q$25)*100","v":{"$error":"#N/A"}},null,null,{"$f":"L25/MAX($I$25:$Q$25)*100","v":{"$error":"#N/A"}},null,null,{"$f":"O25/MAX($I$25:$Q$25)*100","v":{"$error":"#N/A"}}]
[]
[]
[]
[]
[]
[]
[null,null,"פרויקטים בשכר עידוד"]
[null,null,3,40]
[null,null,5,80]
[null,null,7,100]

{"sheet":"מחיר","index":2,"n_rows":17,"n_cols":22,"rows_kept":17,"merged":[[2,4,2,6],[2,7,2,11],[2,12,2,16],[2,17,2,21],[4,1,7,1],[4,2,7,2],[4,3,7,3],[4,9,7,9],[4,10,7,10],[4,11,7,11],[4,14,7,14],[4,15,7,15],[4,16,7,16],[4,19,7,19],[4,20,7,20],[4,21,7,21],[8,1,11,1],[8,2,11,2],[8,3,11,3],[8,9,11,9],[8,10,11,10],[8,11,11,11],[8,14,11,14],[8,15,11,15],[8,16,11,16],[8,19,11,19],[8,20,11,20],[8,21,11,21],[16,1,16,6],[16,7,16,11],[16,12,16,16],[16,17,16,21]]}
[]
[]
[{"$nulls":4},"יחידת מידה",null,null,{"$f":"'תנאי סף'!D2","v":"מציע מס' 1"},{"$nulls":4},{"$f":"'תנאי סף'!E2","v":"מציע מס' 2"},{"$nulls":4},{"$f":"'תנאי סף'!F2","v":"מציע מס' 3"}]
[null,"סימון","פרמטר","משקל כללי","סימון","יחידה","משקל","מחיר","מחיר משוקלל","סה\"כ מחיר משוקלל","ציון","ציון","מחיר","מחיר משוקלל","סה\"כ מחיר משוקלל","ציון","ציון","מחיר","מחיר משוקלל","סה\"כ מחיר משוקלל","ציון","ציון"]
[null,"Td","עלות בנייה ופיתוח שיטות שכר עידוד",{"v":0.1,"d":"10%"},"Td1","קבוצה של 1 עד 5 עובדים",{"v":0.3,"d":"30%"},null,{"$f":"H5*$G5","v":0},{"$f":"SUM(I5:I8)","v":0},{"$f":"MIN($J$5,$O$5,$T$5)/J5*100","v":{"$error":"#DIV/0!"}},{"$f":"K5*$D$5","v":{"$error":"#DIV/0!"}},null,{"$f":"M5*$G5","v":0},{"$f":"SUM(N5:N8)","v":0},{"$f":"MIN($J$5,$O$5,$T$5)/O5*100","v":{"$error":"#DIV/0!"}},{"$f":"P5*$D$5","v":{"$error":"#DIV/0!"}},null,{"$f":"R5*$G5","v":0},{"$f":"SUM(S5:S8)","v":{"v":0,"d":"0.0"}},{"$f":"MIN($J$5,$O$5,$T$5)/T5*100","v":{"$error":"#DIV/0!"}},{"$f":"U5*$D$5","v":{"$error":"#DIV/0!"}}]
[{"$nulls":4},"Td2","קבוצה של 6 עד 10 עובדים",{"v":0.4,"d":"40%"},null,{"$f":"H6*$G6","v":0},{"$nulls":4},{"$f":"M6*$G6","v":0},{"$nulls":4},{"$f":"R6*$G6","v":0}]
[{"$nulls":4},"Td3","קבוצה של 11 עד 15 עובדים",{"v":0.2,"d":"20%"},null,0,{"$nulls":4},0,{"$nulls":4},0]
[{"$nulls":4},"Td4","קבוצה של 16 עובדים ומעלה",{"v":0.1,"d":"10%"},null,0,{"$nulls":4},0,{"$nulls":4},0]
[null,"Tu","עדכון של שיטות שכר עידוד קיימות",{"v":0.3,"d":"30%"},"Tu1","קבוצה של 1 עד 5 עובדים",{"v":0.3,"d":"30%"},null,0,{"$f":"SUM(I9:I12)","v":0},{"$f":"MIN($J$9,$O$9,$T$9)/J9*100","v":{"$error":"#DIV/0!"}},{"$f":"K9*$D$9","v":{"$error":"#DIV/0!"}},null,0,{"$f":"SUM(N9:N12)","v":0},{"$f":"MIN($J$9,$O$9,$T$9)/O9*100","v":{"$error":"#DIV/0!"}},{"$f":"P9*$D$9","v":{"$error":"#DIV/0!"}},null,0,{"$f":"SUM(S9:S12)","v":{"v":0,"d":"0.0"}},{"$f":"MIN($J$9,$O$9,$T$9)/T9*100","v":{"$error":"#DIV/0!"}},{"$f":"U9*$D$9","v":{"$error":"#DIV/0!"}}]
[{"$nulls":4},"Tu2","קבוצה של 6 עד 10 עובדים",{"v":0.4,"d":"40%"},null,0,{"$nulls":4},0,{"$nulls":4},0]
[{"$nulls":4},"Tu3","קבוצה של 11 עד 15 עובדים",{"v":0.2,"d":"20%"},null,0,{"$nulls":4},0,{"$nulls":4},0]
[{"$nulls":4},"Tu4","קבוצה של 16 עובדים ומעלה",{"v":0.1,"d":"10%"},null,0,{"$nulls":4},0,{"$nulls":4},0]
[null,"Tc","הוספה או עדכון מרכיב (איכותי/כמותי) לשיטה לשכר עידוד קיימת",{"v":0.15,"d":"15%"},"----","מרכיב בודד (איכותי/כמותי)","----",null,"----","----",{"$f":"MIN($H13,$M13,$R13)/H13*100","v":{"$error":"#DIV/0!"}},{"$f":"K13*$D13","v":{"$error":"#DIV/0!"}},null,"----","----",{"$f":"MIN($H13,$M13,$R13)/M13*100","v":{"$error":"#DIV/0!"}},{"$f":"P13*$D13","v":{"$error":"#DIV/0!"}},null,"----","----",{"$f":"MIN($H13,$M13,$R13)/R13*100","v":{"$error":"#DIV/0!"}},{"$f":"U13*$D13","v":{"$error":"#DIV/0!"}}]
[null,"Te","ביצוע בדיקת תקינות דיווח ועדכניות שיטה",{"v":0.05,"d":"5%"},"----","שיטה בודדת","----",null,"----","----",{"$f":"MIN($H14,$M14,$R14)/H14*100","v":{"$error":"#DIV/0!"}},{"$f":"K14*$D14","v":{"$error":"#DIV/0!"}},null,"----","----",{"$f":"MIN($H14,$M14,$R14)/M14*100","v":{"$error":"#DIV/0!"}},{"$f":"P14*$D14","v":{"$error":"#DIV/0!"}},null,"----","----",{"$f":"MIN($H14,$M14,$R14)/R14*100","v":{"$error":"#DIV/0!"}},{"$f":"U14*$D14","v":{"$error":"#DIV/0!"}}]
[null,"Ts","חישוב שכר העידוד והפרמיות וביצוע בקרה לבחינת אמינות הדיווחים",{"v":0.3,"d":"30%"},"----","מחיר לחודש","----",null,"----","----",{"$error":"#DIV/0!"},{"$error":"#DIV/0!"},null,"----","----",{"$error":"#DIV/0!"},{"$error":"#DIV/0!"},null,"----","----",{"$error":"#DIV/0!"},{"$error":"#DIV/0!"}]
[null,"Th","ביצוע עבודות נוספות על פי שעות",{"v":0.1,"d":"10%"},"----","מחיר לשעת ייעוץ למנהל הפרויקט לפי הוראת החשכ\"ל","----",null,"----","----",{"$error":"#DIV/0!"},{"$error":"#DIV/0!"},null,"----","----",{"$error":"#DIV/0!"},{"$error":"#DIV/0!"},null,"----","----",{"$error":"#DIV/0!"},{"$error":"#DIV/0!"}]
[null,"ציון מחיר",{"$nulls":5},{"$f":"SUM(L5:L16)","v":{"$error":"#DIV/0!"}},{"$nulls":4},{"$f":"SUM(Q5:Q16)","v":{"$error":"#DIV/0!"}},{"$nulls":4},{"$f":"SUM(V5:V16)","v":{"$error":"#DIV/0!"}}]

{"sheet":"סופי","index":3,"n_rows":5,"n_cols":6,"rows_kept":5}
[]
[null,"מרכיב בציון","משקל",{"$f":"'[1]בדיקת תנאי סף'!D2","v":"מציע מס' 1"},{"$f":"'[1]בדיקת תנאי סף'!E2","v":"מציע מס' 2"},{"$f":"'[1]בדיקת תנאי סף'!F2","v":"מציע מס' 3"}]
[null,"ציון איכות",{"v":0.4,"d":"40%"},{"$f":"איכות!I27","v":{"$error":"#N/A"}},{"$f":"איכות!L27","v":{"$error":"#N/A"}},{"$f":"איכות!O27","v":{"$error":"#N/A"}}]
[null,"ציון מחיר",{"v":0.6,"d":"60%"},{"$f":"מחיר!H17","v":{"$error":"#DIV/0!"}},{"$f":"מחיר!M17","v":{"$error":"#DIV/0!"}},{"$f":"מחיר!R17","v":{"$error":"#DIV/0!"}}]
[null,"סה\"כ",{"$f":"SUM(C3:C4)","v":{"v":1,"d":"100%"}},{"$f":"SUMPRODUCT(D3:D4,$C$3:$C$4)","v":{"$error":"#N/A"}},{"$f":"SUMPRODUCT(E3:E4,$C$3:$C$4)","v":{"$error":"#N/A"}},{"$error":"#N/A"}]